bitfinex/quotes_ETHUSD_20250903
["timestamp","ask_amount","ask_price","bid_price","bid_amount"]
[1756920618657,0.4288,4487.3,4486.4,8.66227762]
[1756920619164,0.4564,4487.4,4486.4,9.13297762]
[1756920619366,0.4564,4487.4,4486.4,5.37897762]
[1756920619533,0.4288,4487.3,4486.4,8.66227762]
[1756920619934,0.4288,4487.3,4486.4,8.23107762]
[1756920621264,0.4288,4487.3,4486.4,8.66227762]
[1756920621632,0.002,4487.0,4486.4,8.66227762]
[1756920622265,0.002,4487.0,4486.4,8.65887762]
[1756920623172,0.002,4487.0,4486.4,9.56077762]
[1756920623341,0.002,4487.0,4486.4,5.80777762]
[1756920623666,0.002,4487.0,4486.4,9.56077762]
[1756920623833,0.002,4487.4,4486.7,0.792]
[1756920624034,0.002,4487.4,4487.3,2.22851157]
[1756920624334,0.002,4487.4,4487.3,8.88941157]
[1756920624661,0.002,4487.4,4487.3,9.32061157]
[1756920624865,0.002,4487.4,4487.3,8.59771157]
[1756920625265,0.002,4487.4,4487.3,8.88941157]
[1756920625467,0.002,4487.4,4487.3,10.09116382]
[1756920625832,0.002,4487.4,4487.3,10.52236382]
[1756920626062,0.002,4487.4,4487.3,10.99306382]
[1756920626775,0.002,4487.4,4487.3,10.52236382]
[1756920627066,0.002,4487.4,4487.3,6.33816382]
[1756920627266,0.002,4487.4,4487.3,6.04646382]
[1756920627442,0.2966,4487.4,4487.3,9.79846382]
[1756920628358,0.002,4487.4,4487.3,6.33816382]
[1756920628553,0.002,4487.4,4487.3,10.09016382]
[1756920628876,0.002,4487.4,4487.3,14.3261638]
[1756920629852,0.002,4487.4,4487.3,14.0344638]
[1756920631572,0.002,4487.4,4487.3,14.3255638]
[1756920631879,0.002,4487.4,4487.3,14.0344638]
[1756920632062,0.3079,4487.4,4487.3,9.08071155]
[1756920632268,0.3079,4487.4,4487.3,12.83271155]
[1756920632588,0.3079,4487.4,4487.3,9.08071155]
[1756920632878,0.3079,4487.4,4487.3,12.83271155]
[1756920634286,0.002,4487.4,4487.3,14.6728238]
[1756920634698,0.002,4487.4,4487.3,10.6297238]
[1756920634885,0.3079,4487.4,4487.3,14.3807238]
[1756920635398,1.2119,4487.4,4487.3,9.08071155]
[1756920635600,1.2119,4487.4,4487.3,12.83171155]
[1756920635972,1.2119,4487.4,4487.3,9.08071155]
[1756920636174,1.2119,4487.4,4487.3,12.83171155]
[1756920636977,0.002,4487.4,4487.3,13.12281155]
[1756920637176,0.002,4487.4,4487.3,14.72492847]
[1756920637386,0.002,4487.4,4487.3,14.43382847]
[1756920637775,0.3079,4487.4,4487.3,14.43382847]
[1756920638368,0.3079,4487.4,4487.3,12.83171155]
[1756920640285,0.002,4487.4,4487.3,13.12281155]
[1756920640683,0.3079,4487.4,4487.3,12.83171155]
[1756920641403,0.3079,4487.4,4487.3,9.08071155]
[1756920641705,1.2119,4487.4,4487.3,12.83171155]
[1756920641909,1.2119,4487.4,4487.3,8.28871155]
[1756920642315,1.2119,4487.4,4487.3,12.03971155]
[1756920643708,0.002,4487.4,4487.3,13.12281155]
[1756920643913,0.002,4487.4,4487.3,15.17592312]
[1756920644478,0.002,4487.4,4487.3,14.70562312]
[1756920645508,0.002,4487.4,4487.3,14.41452312]
[1756920645895,0.002,4487.4,4487.3,14.70562312]
[1756920646612,0.002,4487.4,4487.3,14.41452312]
[1756920647109,0.002,4487.4,4487.3,15.17592312]
[1756920647306,0.002,4487.4,4487.3,14.70562312]
[1756920647612,0.002,4487.4,4487.3,15.17592312]
[1756920647787,0.002,4487.4,4487.3,14.70562312]
[1756920647988,0.002,4487.4,4487.3,14.70462312]
[1756920648413,0.002,4487.4,4487.3,15.17492312]
[1756920648893,0.002,4487.4,4487.3,15.65162312]
[1756920649213,1e-08,4488.3,4488.2,3.0200647]
[1756920649374,1e-08,4488.3,4488.2,14.15524427]
[1756920649580,1e-08,4488.3,4488.2,15.48226363]
[1756920649908,1e-08,4488.3,4488.2,11.73226363]
[1756920650295,1e-08,4488.3,4488.2,15.93106363]
[1756920652001,1e-08,4488.3,4488.2,10.8059845]
[1756920652435,1e-08,4488.3,4488.2,7.0559845]
[1756920652646,1e-08,4488.3,4488.2,10.8059845]
[1756920653457,1e-08,4488.3,4488.2,7.0559845]
[1756920653601,1e-08,4488.3,4488.2,10.8059845]
[1756920654044,1e-08,4488.8,4488.7,3.01981651]
[1756920654244,1e-08,4488.8,4488.7,12.19587729]
[1756920654401,1e-08,4488.8,4488.7,13.54517729]
[1756920655048,1e-08,4488.8,4488.7,13.99397729]
[1756920655250,1e-08,4488.8,4488.7,5.11989816]
[1756920655452,1e-08,4488.8,4488.7,10.24497729]
[1756920655657,1e-08,4488.8,4488.7,13.99397729]
[1756920657414,0.00200001,4488.8,4488.7,13.99397729]
[1756920658144,0.025,4489.8,4488.7,13.99397729]
[1756920658145,1e-08,4489.2,4489.1,3.019618]
[1756920658316,1e-08,4489.2,4489.1,15.39080384]
[1756920658513,1e-08,4489.2,4489.1,15.47972766]
[1756920659535,1e-08,4489.2,4489.1,20.38507691]
[1756920659736,1e-08,4489.2,4489.1,23.38507691]
[1756920660128,1e-08,4489.2,4489.1,23.38407691]
[1756920660332,1e-08,4489.2,4489.1,18.25899778]
[1756920660534,1e-08,4489.2,4489.1,23.38407691]
[1756920661344,1e-08,4489.2,4489.1,19.63607691]
[1756920661544,1e-08,4489.8,4489.7,3.01932031]
[1756920661746,1e-08,4489.8,4489.7,12.43934356]
[1756920661945,1e-08,4489.8,4489.7,13.66597036]
[1756920662154,1e-08,4489.8,4489.7,13.77717036]
[1756920662325,1e-08,4489.8,4489.7,14.26947036]
[1756920663626,1e-08,4489.8,4489.7,10.52147036]
[1756920664028,1e-08,4489.8,4489.7,14.26947036]
[1756920664686,1e-08,4489.8,4489.7,13.02057036]
[1756920664971,1e-08,4489.8,4489.7,18.01647034]
[1756920665489,1e-08,4489.8,4489.7,12.43229121]
[1756920665853,1.27300001,4489.8,4489.7,12.13049121]
[1756920666082,1e-08,4489.8,4489.7,12.13049121]
[1756920667474,1e-08,4489.8,4489.7,12.43229121]
[1756920667775,1e-08,4489.8,4489.7,8.38349121]
[1756920667982,0.31070001,4489.8,4489.7,12.13049121]
[1756920668178,0.31070001,4489.8,4489.7,8.38349121]
[1756920668383,1.27300001,4489.8,4489.7,10.32152029]
[1756920668582,1.27300001,4489.8,4489.7,6.57452029]
[1756920668880,1.27300001,4489.8,4489.7,10.32152029]
[1756920669084,1.27300001,4489.8,4489.7,7.36652029]
[1756920669282,1.27300001,4489.8,4489.7,11.11352029]
[1756920669582,1.27300001,4489.8,4489.7,6.87752031]
[1756920670882,1.27300001,4489.8,4489.7,3.13052031]
[1756920671184,1.27300001,4489.8,4489.7,6.87752031]
[1756920671615,1.27300001,4489.8,4489.7,4.34719998]
[1756920671748,1.91280792,4489.8,4489.7,10.32152029]
[1756920672082,1.27300001,4489.8,4489.7,11.11352029]
[1756920672248,0.80300001,4489.8,4489.7,11.11352029]
[1756920672453,1.27300001,4489.8,4489.7,11.11352029]
[1756920672659,0.31070001,4489.8,4489.7,11.11352029]
[1756920672869,1e-08,4489.8,4489.7,13.26191918]
[1756920673572,1e-08,4489.8,4489.7,12.96011918]
[1756920673771,1e-08,4489.8,4489.7,13.26191918]
[1756920674294,1e-08,4489.8,4489.7,14.20901918]
[1756920674493,0.31070001,4489.8,4489.7,12.96011918]
[1756920675100,0.31270001,4489.8,4489.7,13.62944008]
[1756920675298,0.00200001,4489.8,4489.7,13.62944008]
[1756920675665,0.9623,4490.2,4490.1,3.01912189]
[1756920675976,1e-08,4490.8,4490.7,2.22682432]
[1756920676364,1.27300001,4490.8,4490.7,6.08402432]
[1756920676595,1.27300001,4490.8,4490.7,3.8572]
[1756920676804,6.39807914,4490.8,4490.7,3.746]
[1756920677003,6.34807914,4490.8,4490.7,3.746]
[1756920677808,6.34807914,4490.8,4490.5,0.1112]
[1756920677995,5.12507913,4490.7,4490.6,3.746]
[1756920678186,6.08737913,4490.7,4490.6,3.746]
[1756920678506,6.50927913,4490.7,4490.6,3.746]
[1756920679310,1.3842,4490.7,4490.6,3.746]
[1756920681707,1.3842,4490.7,4490.1,1.712]
[1756920681903,5.23627913,4490.3,4490.2,3.746]
[1756920682094,6.50927913,4490.3,4490.1,1.712]
[1756920682303,5.54697913,4490.3,4490.2,3.746]
[1756920682880,6.50927913,4490.3,4490.2,3.746]
[1756920683083,6.50927913,4490.3,4490.2,5.97307229]
[1756920683084,1.3842,4490.3,4490.2,5.97307229]
[1756920683314,0.9142,4490.3,4490.2,5.97307229]
[1756920683514,0.47,4491.1,4491.0,2.22667557]
[1756920683719,1.273,4491.1,4491.0,7.68467557]
[1756920683917,0.3107,4491.1,4491.0,7.74587557]
[1756920684085,1.273,4491.1,4491.0,7.74587557]
[1756920684285,1.273,4491.1,4491.0,3.99987557]
[1756920684487,1.273,4491.1,4491.0,7.74587557]
[1756920686424,1.273,4491.1,4491.0,3.99987557]
[1756920686598,0.803,4491.1,4491.0,7.74587557]
[1756920686799,1.273,4491.1,4491.0,7.74587557]
[1756920687993,0.4923,4491.4,4491.3,2.22652684]
[1756920688199,0.4923,4491.4,4491.3,5.97252684]
[1756920688407,1.273,4491.4,4491.3,5.97252684]
[1756920688586,1.273,4491.4,4491.3,3.746]
[1756920689722,0.803,4491.4,4491.3,3.746]
[1756920690218,0.803,4491.4,4491.3,5.97252684]
[1756920690420,0.3107,4491.4,4491.3,5.97252684]
[1756920691524,6.39657913,4491.4,4491.0,4.04986711]
[1756920691730,0.9608,4491.3,4491.1,3.745]
[1756920691930,0.4868,4491.3,4491.1,3.745]
[1756920692124,5.12507913,4491.4,4491.3,2.22652684]
[1756920692324,1.072,4491.6,4491.3,2.22652684]
[1756920692325,0.598,4491.6,4491.4,2.22647596]
[1756920692530,0.025,4491.8,4491.5,4.1712]
[1756920692737,0.025,4491.8,4491.6,2.22634209]
[1756920692898,0.3112,4491.6,4491.5,2.33762303]
[1756920693229,0.3112,4491.6,4491.5,6.08262303]
[1756920693427,0.3112,4491.6,4491.5,2.33761365]
[1756920693604,6.39707913,4491.6,4491.5,3.8562]
[1756920693805,6.39707913,4491.6,4491.5,3.745]
[1756920694022,5.92307913,4491.6,4491.5,3.745]
[1756920694218,5.43627913,4491.6,4491.5,3.745]
[1756920695406,0.3112,4491.6,4491.5,3.745]
[1756920696334,0.3112,4491.6,4491.3,2.33771315]
[1756920696335,0.798,4491.6,4491.3,0.1112]
[1756920696644,5.12507913,4491.4,4491.0,1.8232]
[1756920696799,6.08587913,4491.4,4491.1,3.745]
[1756920696998,6.08587913,4491.4,4491.1,5.97162394]
[1756920697194,0.3112,4491.2,4491.0,1.712]
[1756920697431,6.08587913,4491.1,4491.0,1.712]
[1756920697730,6.39707913,4491.1,4491.0,5.457]
[1756920698355,5.92307913,4491.1,4491.0,5.457]
[1756920698648,5.61187913,4491.7,4491.2,2.22656421]
[1756920698844,5.61187913,4491.7,4491.3,3.745]
[1756920699146,0.025,4491.8,4491.3,3.745]
[1756920699361,0.025,4491.8,4491.5,2.22640468]
[1756920699513,0.025,4491.8,4491.6,3.745]
[1756920699928,0.025,4491.8,4491.6,5.97137295]
[1756920700325,0.025,4491.8,4491.6,3.745]
[1756920700545,0.025,4491.8,4491.6,5.97136954]
[1756920700848,0.025,4491.8,4491.7,0.315]
[1756920701151,0.025,4491.8,4491.6,5.97137297]
[1756920701521,0.025,4491.8,4491.7,2.54132856]
[1756920701723,0.025,4491.8,4491.7,0.315]
[1756920702257,0.025,4491.8,4491.7,4.54899997]
[1756920702412,0.3362,4491.8,4491.7,4.23399997]
[1756920702937,0.3362,4491.8,4491.6,3.745]
[1756920703342,6.08587913,4491.7,4491.5,4.23399997]
[1756920703537,0.3112,4491.6,4491.5,4.23399997]
[1756920703741,0.798,4491.6,4491.5,4.23399997]
[1756920703942,0.3112,4491.6,4491.5,7.97899997]
[1756920705748,0.025,4491.8,4491.5,7.97899997]
[1756920705947,0.025,4491.8,4491.6,3.744]
[1756920706359,0.3112,4491.6,4491.5,4.23399997]
[1756920706568,1.272,4491.6,4491.5,7.97799997]
[1756920707176,0.798,4491.6,4491.5,7.97799997]
[1756920707358,0.3112,4491.6,4491.5,4.23399997]
[1756920707667,1.272,4491.6,4491.5,3.744]
[1756920707966,2.0158523,4491.6,4491.5,3.744]
[1756920708551,2.1270523,4491.6,4491.5,3.744]
[1756920708968,2.1270523,4491.6,4491.4,1.712]
[1756920709131,0.9608,4491.5,4491.4,1.712]
[1756920709474,3.18722769,4491.5,4491.4,5.456]
[1756920709679,4.77325624,4491.5,4491.4,1.712]
[1756920709886,2.54682855,4491.5,4491.4,1.712]
[1756920710166,7.77325624,4491.5,4491.4,5.456]
[1756920710462,8.25375716,4491.5,4491.4,5.456]
[1756920710875,2.22662599,4491.1,4491.0,0.001]
[1756920711076,12.59400543,4491.1,4491.0,0.001]
[1756920711280,17.72120543,4491.1,4491.0,0.001]
[1756920711463,17.86120543,4491.1,4491.0,0.001]
[1756920711969,17.72120543,4491.1,4491.0,0.001]
[1756920712632,18.39080121,4491.1,4491.0,0.001]
[1756920713590,7.83568246,4491.1,4491.0,0.001]
[1756920721776,11.58068246,4491.1,4491.0,0.001]
[1756920721946,6.56368246,4491.1,4491.0,0.001]
[1756920722151,0.1112,4491.1,4491.0,0.3076]
[1756920722353,0.1112,4491.1,4491.0,1.2095]
[1756920724877,0.1112,4491.1,4491.0,0.3076]
[1756920725049,0.1112,4491.1,4491.0,0.7366]
[1756920725671,0.1112,4491.1,4491.0,0.3076]
[1756920725967,0.1112,4491.1,4491.0,0.001]
[1756920726174,0.1112,4491.1,4491.0,0.3076]
[1756920727175,0.1112,4491.1,4491.0,0.001]
[1756920727385,0.1112,4491.1,4491.0,0.3076]
[1756920727988,0.1112,4491.1,4491.0,1.2095]
[1756920728488,0.1112,4491.1,4491.0,0.7366]
[1756920728950,0.1112,4491.1,4491.0,1.2095]
[1756920729670,0.1112,4491.1,4491.0,0.7366]
[1756920729870,0.1112,4491.1,4491.0,4.4816]
[1756920730567,0.1112,4491.1,4491.0,4.9545]
[1756920730970,0.1112,4491.1,4491.0,4.4816]
[1756920732350,0.1112,4491.1,4491.0,4.9545]
[1756920732763,0.1112,4491.1,4491.0,0.7366]
[1756920732969,0.1112,4491.1,4491.0,4.0526]
[1756920733565,0.1112,4491.1,4491.0,4.4816]
[1756920733805,0.1112,4491.1,4491.0,5.74704195]
[1756920733953,0.002,4491.6,4491.0,8.44661752]
[1756920734154,0.1112,4491.4,4491.1,0.429]
[1756920734356,0.1132,4491.6,4491.3,0.3066]
[1756920734571,0.1132,4491.6,4491.4,4.6469]
[1756920734805,0.1132,4491.6,4491.5,1.2085]
[1756920736573,0.1132,4491.6,4491.5,0.7356]
[1756920737491,0.1132,4491.6,4491.5,1.2085]
[1756920738195,0.1132,4491.6,4491.5,0.3066]
[1756920738608,0.1132,4491.6,4491.5,0.7356]
[1756920739119,0.1132,4491.6,4491.5,0.3066]
[1756920739261,0.1132,4491.6,4491.5,1.2085]
[1756920739661,0.1132,4491.6,4491.5,0.7356]
[1756920740095,0.1132,4491.6,4491.5,3.43492769]
[1756920740587,0.002,4491.6,4491.5,7.66892766]
[1756920740756,0.002,4491.6,4491.5,9.03297646]
[1756920741159,0.1112,4493.1,4491.6,0.792]
[1756920741357,0.1112,4493.5,4492.8,0.4178]
[1756920741607,0.1112,4493.5,4492.8,9.00148347]
[1756920742173,0.1112,4493.5,4492.8,5.25748347]
[1756920742490,0.1112,4493.9,4492.8,9.79348347]
[1756920743098,0.1142,4494.2,4492.8,9.79348347]
[1756920744296,0.044,4494.8,4494.7,2.22484259]
[1756920744511,0.044,4494.8,4494.7,3.7125]
[1756920744811,0.044,4494.8,4494.7,9.30254259]
[1756920745176,0.044,4494.8,4494.7,6.94429016]
[1756920745392,0.044,4494.8,4494.7,2.1298]
[1756920745595,0.044,4494.8,4494.7,5.5992]
[1756920745894,1.4169,4494.8,4494.7,3.778]
[1756920746081,0.1552,4494.8,4494.7,4.0846]
[1756920746281,0.044,4494.8,4494.7,0.4178]
[1756920746505,0.044,4494.8,4494.7,4.0876]
[1756920746862,0.044,4494.8,4494.7,0.3066]
[1756920747063,0.3439,4494.8,4494.5,0.1112]
[1756920747407,0.044,4494.8,4494.5,0.1112]
[1756920747803,0.2999,4494.6,4494.5,0.1112]
[1756920748119,6.61716209,4494.6,4494.5,0.1112]
[1756920748261,7.28610241,4494.6,4494.0,5.189]
[1756920748466,0.1112,4494.1,4494.0,5.189]
[1756920748716,0.4111,4494.1,4494.0,1.711]
[1756920749007,3.02444475,4494.6,4494.0,5.496]
[1756920749008,0.1112,4494.4,4494.0,5.496]
[1756920749164,2.52503962,4494.1,4493.2,1.711]
[1756920749363,2.22541361,4493.6,4493.2,1.711]
[1756920749594,0.1112,4493.4,4493.3,3.274]
[1756920749960,0.1112,4493.4,4493.3,3.5845]
[1756920750173,0.005,4495.0,4493.3,3.5845]
[1756920750174,0.4862,4494.3,4493.4,2.22544063]
[1756920750536,0.1112,4494.0,4493.5,3.788]
[1756920750705,0.1112,4494.0,4493.5,6.01342939]
[1756920750994,0.1112,4494.4,4493.9,2.53572854]
[1756920751197,0.1112,4494.4,4494.0,3.81225189]
[1756920751372,0.71287768,4494.8,4494.5,2.22489339]
[1756920751560,0.71287768,4494.8,4494.6,3.79]
[1756920751760,0.044,4494.8,4494.2,0.1112]
[1756920751964,0.044,4494.8,4494.7,0.3105]
[1756920752372,0.044,4494.8,4494.7,4.1005]
[1756920752812,0.044,4494.8,4494.7,3.79]
[1756920753114,0.044,4494.8,4494.7,4.9952]
[1756920753309,0.3411,4494.8,4494.6,0.1112]
[1756920753464,0.044,4494.8,4494.1,1.711]
[1756920753670,0.044,4494.8,4494.4,0.1112]
[1756920753869,0.0662,4495.2,4494.5,3.488]
[1756920754317,0.1112,4495.1,4494.5,6.25270014]
[1756920754523,0.1112,4495.1,4494.5,4.0278]
[1756920754689,0.1112,4495.2,4494.5,6.2527209]
[1756920754889,0.1112,4495.2,4494.5,0.1112]
[1756920755132,3.66427471,4495.2,4494.6,3.789]
[1756920755335,0.66427471,4495.2,4494.7,3.788]
[1756920755492,0.2971,4494.8,4494.7,3.788]
[1756920756421,0.2971,4494.8,4494.3,0.1112]
[1756920756622,0.9528,4494.7,4494.4,3.788]
[1756920756919,0.4083,4494.5,4494.4,3.788]
[1756920757122,0.1112,4494.5,4494.4,3.788]
[1756920757297,0.1112,4494.5,4494.4,4.0985]
[1756920757627,0.1112,4494.7,4494.4,4.0985]
[1756920757825,0.1112,4494.7,4494.4,3.788]
[1756920758324,0.1112,4494.7,4494.6,0.3105]
[1756920758932,0.1112,4494.7,4494.6,0.7766]
[1756920759134,0.1112,4495.0,4494.6,3.00149209]
[1756920759353,0.1112,4495.0,4494.7,0.4661]
[1756920759490,0.1112,4495.3,4494.9,2.22472101]
[1756920759694,0.1112,4495.3,4494.9,3.11942101]
[1756920760202,0.1112,4495.3,4495.0,3.9356765]
[1756920760394,0.1112,4495.3,4495.2,0.3105]
[1756920760592,0.1112,4495.3,4495.2,4.0975]
[1756920761010,0.003,4495.6,4495.2,4.0975]
[1756920761216,0.003,4495.6,4495.4,0.1112]
[1756920761699,0.003,4495.6,4495.5,3.793]
[1756920761924,0.003,4495.6,4495.5,4.1035]
[1756920762420,0.003,4495.6,4495.5,5.1094]
[1756920762608,0.003,4495.6,4495.5,4.2147]
[1756920762812,0.003,4495.6,4495.5,8.97071666]
[1756920763191,0.003,4495.6,4495.5,8.85951666]
[1756920763430,0.003,4495.6,4495.5,8.97071666]
[1756920763601,0.003,4495.6,4495.5,8.97371666]
[1756920763807,0.003,4495.6,4495.5,5.17771666]
[1756920764209,0.003,4495.6,4495.5,4.38571666]
[1756920764518,0.003,4495.6,4495.5,8.97371666]
[1756920764722,0.003,4495.6,4495.5,3.9072]
[1756920765035,0.003,4495.6,4495.5,6.87074666]
[1756920765197,0.003,4495.6,4495.5,3.9082]
[1756920765393,0.003,4495.6,4495.5,0.1112]
[1756920765593,0.003,4495.6,4495.0,1.711]
[1756920765594,0.3001,4495.6,4495.0,1.711]
[1756920765819,0.003,4495.6,4495.1,3.8]
[1756920765990,0.003,4495.6,4495.1,4.2286]
[1756920766397,0.003,4495.6,4495.5,0.3105]
[1756920766596,0.3001,4495.6,4495.5,3.803]
[1756920766829,1.56562008,4495.6,4495.0,1.711]
[1756920767020,1.3641,4495.6,4495.0,1.8222]
[1756920767343,0.1112,4495.2,4495.0,1.711]
[1756920767499,2.33579512,4495.2,4495.1,3.806]
[1756920767997,3.58569866,4495.2,4494.7,1.71]
[1756920768230,0.9528,4495.1,4494.8,3.805]
[1756920768431,0.025,4495.8,4495.4,2.22449615]
[1756920768594,0.025,4495.8,4495.5,1.91398977]
[1756920768794,0.025,4495.8,4495.6,0.20398977]
[1756920769030,0.025,4495.8,4495.7,0.20398977]
[1756920769440,0.025,4495.8,4494.6,1.983]
[1756920769441,3.0,4495.7,4494.6,1.983]
[1756920769644,2.22455167,4495.3,4494.6,1.983]
[1756920769844,0.2971,4494.7,4494.6,1.983]
[1756920770244,0.7833,4494.7,4494.3,0.12268493]
[1756920770444,0.9528,4494.6,4494.4,3.95568493]
[1756920770748,2.22484997,4494.7,4494.5,3.95568493]
[1756920770956,0.2971,4494.6,4494.5,3.833]
[1756920771327,1.502095,4494.6,4494.5,0.12268493]
[1756920771533,1.2499,4494.6,4494.5,3.95368493]
[1756920771726,0.2971,4494.6,4494.5,3.95368493]
[1756920772647,0.2971,4494.6,4494.5,0.12268493]
[1756920772836,1.2499,4494.6,4494.5,3.95468493]
[1756920773423,1.2499,4494.6,4494.5,0.12268493]
[1756920773623,4.07872428,4494.6,4494.5,0.12268493]
[1756920773824,7.07872428,4494.6,4494.5,0.12268493]
[1756920774237,7.74761985,4494.6,4494.5,0.12268493]
[1756920774431,7.74761985,4494.6,4494.3,3.829]
[1756920774432,5.22494159,4494.5,4494.4,0.12268493]
[1756920774634,5.70388378,4494.5,4494.4,0.12268493]
[1756920774833,5.70388378,4494.5,4494.0,0.12268493]
[1756920774834,2.2249911,4494.4,4494.0,0.12268493]
[1756920775034,0.47894219,4494.3,4494.1,0.12268493]
[1756920775234,3.1778406,4494.3,4494.2,0.12268493]
[1756920775565,4.72892195,4494.3,4493.9,0.12268493]
[1756920775733,0.47902195,4494.2,4494.0,0.12268493]
[1756920775933,0.9528,4494.2,4494.1,0.12268493]
[1756920776124,1.72892105,4494.2,4493.9,3.95068493]
[1756920776462,1.2499,4494.2,4494.0,0.12268493]
[1756920776639,1.2499,4494.2,4494.1,0.12268493]
[1756920777443,1.2499,4494.2,4494.0,0.12268493]
[1756920777765,1.2499,4494.2,4494.1,0.12268493]
[1756920778090,0.2971,4494.2,4494.0,0.12268493]
[1756920778364,1.2499,4494.2,4494.1,0.12268493]
[1756920778570,1.2499,4494.2,4494.0,0.12268493]
[1756920778748,1.2499,4494.2,4494.1,0.12268493]
[1756920778929,1.2499,4494.2,4494.0,0.12268493]
[1756920779131,2.22487856,4494.7,4494.0,0.12268493]
[1756920779132,0.4862,4495.5,4494.1,0.89928493]
[1756920779330,0.1112,4494.8,4494.2,0.66248493]
[1756920779538,0.1112,4494.8,4494.3,5.67168493]
[1756920779743,0.1112,4494.8,4494.4,0.12268493]
[1756920779958,0.9643,4494.7,4494.5,0.12268493]
[1756920780130,0.9643,4494.7,4494.6,0.12268493]
[1756920780528,5.22489209,4494.6,4494.5,4.23399997]
[1756920780766,1.75794995,4494.6,4494.5,4.23399997]
[1756920780961,0.79366306,4494.6,4494.5,4.23399997]
[1756920781344,0.47886306,4494.6,4494.5,4.23399997]
[1756920781870,0.66889558,4494.7,4494.5,4.23399997]
[1756920782252,0.66889558,4494.7,4494.5,4.23499997]
[1756920782450,3.0,4494.6,4494.5,4.23499997]
[1756920782670,3.3148,4494.6,4494.5,4.23499997]
[1756920782838,2.53969209,4494.6,4494.5,8.07099997]
[1756920783033,2.53969209,4494.6,4494.5,4.23499997]
[1756920783266,4.35844546,4494.6,4494.5,4.23499997]
[1756920783560,4.35844546,4494.6,4494.5,0.001]
[1756920783971,7.35844546,4494.6,4494.5,0.001]
[1756920784383,6.88744546,4494.6,4494.5,0.001]
[1756920784589,21.23697923,4494.6,4494.5,0.001]
[1756920785752,23.73997923,4494.6,4494.5,0.001]
[1756920786185,27.57497923,4494.6,4494.5,0.001]
[1756920788065,7.36623591,4494.6,4494.5,0.001]
[1756920788269,6.98413591,4494.6,4494.5,0.001]
[1756920788952,3.98413591,4494.6,4494.5,0.001]
[1756920789168,10.02654546,4494.6,4494.5,0.001]
[1756920790373,10.34134546,4494.6,4494.5,0.001]
[1756920790602,11.30564546,4494.6,4494.5,0.001]
[1756920791388,11.97464843,4494.6,4494.5,0.001]
[1756920791555,11.50364843,4494.6,4494.5,0.001]
[1756920792294,11.01034843,4494.6,4494.5,0.001]
[1756920792792,10.69554843,4494.6,4494.5,0.001]
[1756920793163,11.01034843,4494.6,4494.5,0.001]
[1756920793583,7.17434843,4494.6,4494.5,0.001]
[1756920793891,6.85954843,4494.6,4494.5,0.001]
[1756920794083,10.69054843,4494.6,4494.5,0.001]
[1756920794459,11.00534843,4494.6,4494.5,0.001]
[1756920794666,11.96964843,4494.6,4494.5,0.001]
[1756920795067,10.69054843,4494.6,4494.5,0.001]
[1756920795266,11.16951429,4494.6,4494.5,0.001]
[1756920795798,7.33851429,4494.6,4494.5,0.001]
[1756920795965,3.1112,4494.6,4494.5,1.2433]
[1756920796595,0.1112,4494.6,4494.5,1.2433]
[1756920798605,0.1112,4494.6,4494.5,0.7877]
[1756920798807,0.1112,4494.6,4494.5,1.2433]
[1756920799504,0.1112,4494.6,4494.5,0.7455]
[1756920800072,0.1112,4494.6,4494.5,1.2433]
[1756920800305,0.1112,4494.6,4494.5,3.46824159]
[1756920800811,0.1112,4495.0,4494.5,2.39612416]
[1756920801104,0.1112,4495.0,4494.6,0.9534]
[1756920801611,0.1112,4495.0,4494.9,0.2889]
[1756920802103,0.1112,4495.0,4494.9,0.7445]
[1756920802313,0.1112,4495.0,4494.9,5.47629997]
[1756920802481,0.1112,4495.0,4494.9,4.97849997]
[1756920803310,2.6506941,4495.0,4494.9,4.23399997]
[1756920803495,7.10252506,4495.0,4494.9,4.23399997]
[1756920804416,6.13822506,4495.0,4494.9,4.23399997]
[1756920804907,7.10252506,4495.0,4494.9,4.23399997]
[1756920805111,6.63152506,4495.0,4494.9,4.23399997]
[1756920805309,3.1112,4495.0,4494.9,4.52289997]
[1756920805509,3.1112,4495.0,4494.9,4.97849997]
[1756920805813,3.1112,4495.0,4494.9,5.47629997]
[1756920806190,3.1112,4495.0,4494.9,1.2423]
[1756920806590,0.1112,4495.0,4494.9,1.2423]
[1756920807010,0.1112,4495.0,4494.9,5.0633]
[1756920807709,0.1112,4495.0,4494.6,4.23399997]
[1756920808098,3.6707897,4495.6,4494.6,8.05399997]
[1756920808299,2.22475633,4494.9,4494.7,3.82]
[1756920808505,0.3148,4494.8,4494.7,3.82]
[1756920808681,0.3148,4494.8,4494.6,4.23399997]
[1756920808878,2.33605373,4494.7,4494.5,0.001]
[1756920809091,2.22489209,4494.6,4494.5,0.001]
[1756920809418,7.66050576,4494.6,4494.5,0.001]
[1756920809715,6.69620576,4494.6,4494.5,0.001]
[1756920809923,7.62740576,4494.6,4494.5,0.001]
[1756920810815,8.10691357,4494.6,4494.5,0.001]
[1756920811115,11.92491357,4494.6,4494.5,0.001]
[1756920811894,11.25596877,4494.6,4494.5,0.001]
[1756920815697,12.04796877,4494.6,4494.5,0.001]
[1756920816807,12.13718907,4494.6,4494.5,0.001]
[1756920817318,11.25196877,4494.6,4494.5,0.001]
[1756920818621,12.04396877,4494.6,4494.5,0.001]
[1756920819709,12.13318985,4494.6,4494.5,0.001]
[1756920820503,8.31918985,4494.6,4494.5,0.001]
[1756920820706,12.13118985,4494.6,4494.5,0.001]
[1756920820902,7.52718985,4494.6,4494.5,0.001]
[1756920821107,10.00396877,4494.6,4494.5,0.001]
[1756920821304,10.43006877,4494.6,4494.5,0.001]